bitfinex/quotes_ETHUSD_20240915
["timestamp","ask_amount","ask_price","bid_price","bid_amount"]
[1726358765487,0.00081285,2424.4,2424.3,4.35326014]
[1726358765681,0.00081285,2424.4,2424.3,5.77395798]
[1726358767665,0.00081285,2424.4,2424.3,2.47403798]
[1726358767865,2.28931285,2424.4,2424.3,0.10617858]
[1726358769301,0.00081285,2424.4,2424.3,2.47410656]
[1726358769701,0.00081285,2424.4,2424.3,1.05336245]
[1726358770623,0.00081285,2424.4,2424.3,1.05324198]
[1726358775408,0.00081285,2424.4,2424.3,1.05307958]
[1726358777850,0.00081285,2424.4,2424.3,4.35299958]
[1726358778056,0.00081285,2424.4,2424.3,5.7733429]
[1726358783971,0.00081285,2424.4,2424.3,2.4734229]
[1726358785390,0.00081285,2424.4,2424.3,2.47352568]
[1726358790401,0.00081285,2424.4,2424.3,2.47344873]
[1726358793614,0.00081285,2424.4,2424.3,2.47344254]
[1726358794313,0.00081285,2424.4,2424.3,5.77336254]
[1726358795316,0.00081285,2424.4,2424.3,5.77337204]
[1726358800442,0.00081285,2424.4,2424.3,5.77324458]
[1726358801244,0.00081285,2424.4,2424.3,2.47332458]
[1726358801471,1.76914626,2424.4,2424.3,2.47332458]
[1726358805147,1.76914626,2424.4,2424.3,2.47386843]
[1726358805549,1.76914626,2424.4,2424.3,3.34180977]
[1726358806349,1.76914626,2424.4,2424.3,2.47386843]
[1726358806553,1.76914626,2424.4,2424.3,3.34180977]
[1726358806848,1.76914626,2424.4,2424.3,2.47386843]
[1726358807351,1.76914626,2424.4,2424.3,3.34180977]
[1726358808149,1.76914626,2424.4,2424.3,3.71605974]
[1726358808914,1.76914626,2424.4,2424.3,3.34180977]
[1726358809352,1.76914626,2424.4,2424.3,2.47386843]
[1726358809848,0.00081285,2424.4,2424.3,2.47386843]
[1726358810056,0.00081285,2424.4,2424.3,4.14050652]
[1726358810226,0.00081285,2424.4,2424.3,2.47834993]
[1726358810433,2.46421285,2424.4,2424.3,2.47834993]
[1726358811446,0.00081285,2424.4,2424.3,2.47834993]
[1726358812023,0.00081285,2424.4,2424.3,2.47842759]
[1726358814936,0.00081285,2424.4,2424.3,2.4786303]
[1726358815167,0.00081285,2424.4,2424.3,4.35507927]
[1726358815369,0.00081285,2424.4,2424.3,5.77855435]
[1726358822578,2.39751285,2424.4,2424.3,2.47863435]
[1726358822882,2.39751285,2424.4,2424.3,1.05515927]
[1726358823243,2.39751285,2424.4,2424.3,1.05513932]
[1726358828304,2.39751285,2424.4,2424.3,0.10617858]
[1726358830560,3.14797655,2424.4,2424.3,0.10617858]
[1726358830756,3.69797655,2424.4,2424.3,0.10617858]
[1726358830990,6.99775655,2424.4,2424.3,0.10617858]
[1726358834628,2.3026,2424.3,2423.8,3.30048]
[1726358834789,1.76833341,2424.0,2423.9,0.94853276]
[1726358834995,1.76833341,2424.0,2423.9,1.05426216]
[1726358836029,1.76833341,2424.0,2423.9,4.35472216]
[1726358837831,1.76833341,2424.0,2423.9,4.35434977]
[1726358839560,1.76833341,2424.0,2423.9,3.4061894]
[1726358841109,4.03983341,2424.0,2423.9,3.4061894]
[1726358841514,4.03983341,2424.0,2423.9,0.1057294]
[1726358851231,4.44381675,2424.0,2423.9,0.1057294]
[1726358854565,7.74414675,2424.0,2423.9,0.1057294]
[1726358854873,11.04447675,2424.0,2423.9,0.1057294]
[1726358861361,7.74414675,2424.0,2423.9,0.1057294]
[1726358869356,8.03456735,2424.3,2423.9,0.1057294]
[1726358869562,1.76833341,2424.0,2423.9,0.1057294]
[1726358869756,1.76833341,2424.0,2423.9,2.4471294]
[1726358870879,1.76833341,2424.0,2423.9,3.02190834]
[1726358876405,1.76833341,2424.0,2423.9,2.4471294]
[1726358878899,1.76833341,2424.0,2423.9,0.1057294]
[1726358898713,5.58599,2424.3,2423.9,0.1057294]
[1726358898915,1.76833341,2424.0,2423.9,0.1057294]
[1726358914370,1.76833341,2424.0,2423.9,1.05502113]
[1726358914756,1.76833341,2424.0,2423.9,1.05502147]
[1726358916868,1.76833341,2424.0,2423.9,2.47947151]
[1726358917074,1.76833341,2424.0,2423.9,1.05502147]
[1726358917582,1.76833341,2424.0,2423.9,2.47945698]
[1726358918284,1.76833341,2424.0,2423.9,2.47946463]
[1726358919168,1.76833341,2424.0,2423.9,1.05502147]
[1726358919581,1.76833341,2424.0,2423.9,1.05537812]
[1726358919764,1.76833341,2424.0,2423.9,2.47983991]
[1726358927456,1.76833341,2424.0,2423.9,1.05537812]
[1726358928984,1.76833341,2424.0,2423.9,2.48039862]
[1726358932500,1.76833341,2424.0,2423.9,2.48073733]
[1726358934501,1.76833341,2424.0,2423.9,2.48072087]
[1726358938711,1.76833341,2424.0,2423.9,1.05572599]
[1726358939382,1.76833341,2424.0,2423.9,1.05573042]
[1726358939707,1.73455735,2424.2,2424.0,2.2782]
[1726358939948,0.00081136,2424.4,2424.3,5.57812]
[1726358940096,0.00081136,2424.4,2424.3,7.95250143]
[1726358940297,0.00081136,2424.4,2424.3,4.65258143]
[1726358941297,0.00081136,2424.4,2424.3,2.37438143]
[1726358941638,0.00081136,2424.4,2424.3,0.94975257]
[1726358942632,0.00081136,2424.4,2424.1,4.27289132]
[1726358942834,1.76833341,2424.3,2424.2,2.37546502]
[1726358943522,1.76833341,2424.3,2424.2,2.37509226]
[1726358943835,1.76833341,2424.3,2424.2,0.9710509]
[1726358944032,1.76833341,2424.3,2424.2,2.39596031]
[1726358944227,1.76833341,2424.3,2424.2,3.41743441]
[1726358944440,1.76833341,2424.3,2424.2,1.992525]
[1726358946344,1.76833341,2424.3,2424.2,1.04233899]
[1726358954273,1.76833341,2424.3,2424.2,0.02086489]
[1726358954476,1.76833341,2424.3,2424.2,0.10570023]
[1726358959465,0.00081136,2424.4,2424.2,3.40575023]
[1726358964718,1.76833341,2424.3,2424.2,0.10570023]
[1726358984263,1.76833341,2424.3,2424.2,1.05780564]
[1726358985356,1.76833341,2424.3,2424.2,2.48641842]
[1726358985977,1.76833341,2424.3,2424.2,1.05780564]
[1726358986962,1.76833341,2424.3,2424.2,1.0581426]
[1726358988382,1.76833341,2424.3,2424.2,0.10570023]
[1726358988981,1.76833341,2424.3,2424.2,1.0581601]
[1726358990376,1.76833341,2424.3,2424.2,0.10570023]
[1726358994200,1.76913394,2424.3,2424.2,0.10570023]
[1726359002196,2.5199514,2424.3,2424.2,0.10570023]
[1726359003405,1.76913394,2424.3,2424.2,0.10570023]
[1726359010425,4.19303394,2424.3,2424.2,0.10570023]
[1726359012096,7.49295394,2424.3,2424.2,0.10570023]
[1726359012535,4.19303394,2424.3,2424.2,0.10570023]
[1726359015136,7.38555394,2424.3,2424.2,0.10570023]
[1726359015704,8.84821881,2424.3,2424.2,0.10570023]
[1726359026762,5.54829881,2424.3,2424.2,0.10570023]
[1726359032062,5.54829881,2424.3,2424.2,0.02086489]
[1726359032248,5.54829881,2424.3,2424.2,0.12336349]
[1726359032449,5.54829881,2424.3,2424.2,0.02086489]
[1726359032630,5.54829881,2424.3,2424.2,0.12348599]
[1726359032958,5.54829881,2424.3,2423.9,2.3293]
[1726359033256,1.76833341,2424.1,2423.9,2.3293]
[1726359034031,1.76833341,2424.1,2423.9,5.62973]
[1726359034366,0.00080053,2424.3,2424.1,5.62948]
[1726359036064,0.00080053,2424.3,2424.2,0.02086489]
[1726359036284,0.00080053,2424.3,2424.2,1.09602337]
[1726359037664,0.00080053,2424.3,2424.2,0.14433337]
[1726359060867,0.00080053,2424.3,2424.2,7.40845974]
[1726359061162,0.00080053,2424.3,2424.2,9.82435545]
[1726359062591,0.00080053,2424.3,2424.2,9.74185974]
[1726359064165,0.00080053,2424.3,2424.2,12.98074601]
[1726359065472,0.00080053,2424.3,2424.2,12.98018395]
[1726359068178,0.00080053,2424.3,2424.2,12.11366365]
[1726359068379,0.00080053,2424.3,2424.2,12.98018395]
[1726359070188,0.00080053,2424.3,2424.2,12.11366365]
[1726359070480,0.00080053,2424.3,2424.2,12.11310864]
[1726359073640,0.00080053,2424.3,2424.2,12.97962894]
[1726359074183,0.00080053,2424.3,2424.2,12.11310864]
[1726359075278,0.00080053,2424.3,2424.2,12.97962894]
[1726359076077,0.00080053,2424.3,2424.2,12.11310864]
[1726359076278,0.00080053,2424.3,2424.2,12.97962894]
[1726359076449,0.00080053,2424.3,2424.2,12.11310864]
[1726359078384,0.00080053,2424.3,2424.2,12.97962894]
[1726359079084,0.00080053,2424.3,2424.2,6.47965864]
[1726359080178,0.00080053,2424.3,2424.2,6.48027319]
[1726359080370,0.00080053,2424.3,2424.2,7.34679349]
[1726359084155,0.00080053,2424.3,2424.2,9.68819349]
[1726359084787,0.00080053,2424.3,2424.2,12.98824349]
[1726359084984,0.00080053,2424.3,2424.2,10.61638004]
[1726359085192,0.00080053,2424.3,2424.2,12.98797739]
[1726359087586,0.00080053,2424.3,2424.2,10.64657739]
[1726359089895,0.00080053,2424.3,2424.2,10.64664087]
[1726359091776,0.00080053,2424.3,2424.2,10.64437918]
[1726359092156,0.00080053,2424.3,2424.2,9.78012057]
[1726359093102,0.00080053,2424.3,2424.2,10.64442255]
[1726359093666,0.00080053,2424.3,2424.2,10.64440244]
[1726359094169,0.00080053,2424.3,2424.2,9.78012057]
[1726359094762,0.00080053,2424.3,2424.2,9.780332]
[1726359095799,0.00080053,2424.3,2424.2,12.97831456]
[1726359096001,0.00080053,2424.3,2424.2,11.08070468]
[1726359096204,0.00080053,2424.3,2424.2,9.780332]
[1726359096405,0.00080053,2424.3,2424.2,12.97851109]
[1726359096785,0.00080053,2424.3,2424.2,12.97892041]
[1726359096984,0.00080053,2424.3,2424.2,11.081114]
[1726359097185,0.00080053,2424.3,2424.2,12.97892041]
[1726359099773,0.00080053,2424.3,2424.2,12.97939226]
[1726359100131,0.00080053,2424.3,2424.2,15.30499226]
[1726359104312,0.00080053,2424.3,2424.2,14.00461958]
[1726359104681,0.00080053,2424.3,2424.2,14.00590387]
[1726359104988,0.00080053,2424.3,2424.2,15.30360205]
[1726359105387,0.00080053,2424.3,2424.2,15.73672839]
[1726359105995,0.00080053,2424.3,2424.2,14.00624175]
[1726359106203,0.00080053,2424.3,2424.2,15.73672839]
[1726359109628,0.00080053,2424.3,2424.2,13.36235279]
[1726359109825,0.00080053,2424.3,2424.2,15.7371384]
[1726359111638,0.00080053,2424.3,2424.2,13.4115384]
[1726359113033,0.00080053,2424.3,2424.2,11.68105176]
[1726359115104,0.00080053,2424.3,2424.2,13.4115384]
[1726359115609,0.00080053,2424.3,2424.2,13.41606277]
[1726359116234,0.00080053,2424.3,2424.2,11.68557613]
[1726359117832,0.00080053,2424.3,2424.2,12.24773819]
[1726359118799,0.00080053,2424.3,2424.2,12.24773959]
[1726359119314,0.00080053,2424.3,2424.2,11.58371322]
[1726359119641,2.40920053,2424.3,2424.2,11.58371322]
[1726359120495,2.40920053,2424.3,2424.2,12.88185663]
[1726359121144,2.40920053,2424.3,2424.2,12.31969317]
[1726359121449,2.40920053,2424.3,2424.2,12.88186538]
[1726359123111,2.40920053,2424.3,2424.2,12.8819241]
[1726359123721,0.00080053,2424.3,2424.2,12.8819241]
[1726359123925,0.00080053,2424.3,2424.2,14.55952428]
[1726359124128,0.00080053,2424.3,2424.2,13.99735207]
[1726359124355,0.00080053,2424.3,2424.2,14.55952711]
[1726359125552,0.00080053,2424.3,2424.2,14.55952634]
[1726359127451,0.00080053,2424.3,2424.2,13.99735207]
[1726359127952,0.00080053,2424.3,2424.2,14.5596414]
[1726359129452,0.00080053,2424.3,2424.2,13.26149799]
[1726359129657,0.00080053,2424.3,2424.2,14.55981301]
[1726359129836,0.00080053,2424.3,2424.2,13.26149799]
[1726359130239,0.00080053,2424.3,2424.2,14.55983863]
[1726359130439,0.00080053,2424.3,2424.2,13.26149799]
[1726359130440,0.03002023,2424.3,2424.2,13.26149799]
[1726359130946,0.03002023,2424.3,2424.2,12.69932184]
[1726359131259,0.03002023,2424.3,2424.2,11.58400099]
[1726359131555,0.03002023,2424.3,2424.2,12.88249551]
[1726359131862,0.03002023,2424.3,2424.2,11.58400099]
[1726359132454,0.03002023,2424.3,2424.2,12.88251333]
[1726359132654,0.03002023,2424.3,2424.2,11.58400099]
[1726359132817,0.03002023,2424.3,2424.2,12.88298173]
[1726359133017,0.03002023,2424.3,2424.2,11.58449602]
[1726359133219,0.03002023,2424.3,2424.2,12.88297725]
[1726359133757,0.03002023,2424.3,2424.2,12.88297435]
[1726359133989,0.03002023,2424.3,2424.2,11.58449602]
[1726359134288,0.03002023,2424.3,2424.2,12.88297129]
[1726359134445,0.03002023,2424.3,2424.2,11.02221669]
[1726359134779,0.03002023,2424.3,2424.2,11.58448782]
[1726359134945,0.03002023,2424.3,2424.2,12.88296064]
[1726359135145,0.03002023,2424.3,2424.2,11.58448782]
[1726359135683,0.03002023,2424.3,2424.2,12.88295932]
[1726359136043,0.03002023,2424.3,2424.2,11.58448782]
[1726359137386,0.03002023,2424.3,2424.2,13.3665397]
[1726359137701,0.03002023,2424.3,2424.2,10.98656279]
[1726359137877,0.03002023,2424.3,2424.2,12.80427944]
[1726359138079,0.03002023,2424.3,2424.2,13.36656363]
[1726359138284,0.03002023,2424.3,2424.2,13.36656305]
[1726359141388,0.03002023,2424.3,2424.2,12.80427944]
[1726359141588,0.03002023,2424.3,2424.2,13.36656643]
[1726359141959,0.03002023,2424.3,2424.2,13.3665489]
[1726359142198,0.03002023,2424.3,2424.2,15.09703554]
[1726359142495,0.03002023,2424.3,2424.2,11.58449702]
[1726359142692,0.03002023,2424.3,2424.2,11.58444745]
[1726359143188,0.03002023,2424.3,2424.2,13.31493409]
[1726359143759,0.03002023,2424.3,2424.2,11.58444745]
[1726359144070,0.03002023,2424.3,2424.2,13.31493409]
[1726359144264,0.03002023,2424.3,2424.2,11.58444745]
[1726359144494,0.03002023,2424.3,2424.2,13.31493409]
[1726359147697,0.03002023,2424.3,2424.2,13.31507575]
[1726359148389,0.03002023,2424.3,2424.2,12.75280629]
[1726359148597,0.03002023,2424.3,2424.2,13.31508074]
[1726359151606,0.03002023,2424.3,2424.2,12.75280629]
[1726359151971,0.03002023,2424.3,2424.2,13.31508361]
[1726359152747,0.03002023,2424.3,2424.2,13.31499267]
[1726359154975,0.03002023,2424.3,2424.2,13.31496109]
[1726359157295,0.03002023,2424.3,2424.2,15.0970154]
[1726359157493,0.03002023,2424.3,2424.2,12.71702647]
[1726359157815,0.03002023,2424.3,2424.2,15.0973117]
[1726359158790,0.03002023,2424.3,2424.2,14.53506596]
[1726359158988,0.03002023,2424.3,2424.2,15.09731011]
[1726359161882,0.03002023,2424.3,2424.2,14.53506596]
[1726359162085,0.03002023,2424.3,2424.2,15.09729907]
[1726359162594,0.03002023,2424.3,2424.2,15.09730052]
[1726359165314,0.03002023,2424.3,2424.2,15.09728549]
[1726359167495,0.03002023,2424.3,2424.2,15.09736032]
[1726359168533,0.03002023,2424.3,2424.2,14.53514224]
[1726359168829,0.03002023,2424.3,2424.2,25.62242645]
[1726359168992,0.43167489,2424.9,2424.2,25.62242645]
[1726359168993,2.80847489,2424.9,2424.8,3.29924]
[1726359169192,0.43167489,2424.9,2424.8,6.68769872]
[1726359169434,2.4164696,2425.1,2425.0,3.29896]
[1726359169588,2.4164696,2425.1,2425.0,5.67932151]
[1726359170028,0.0396696,2425.1,2425.0,5.67932151]
[1726359171314,0.0396696,2425.1,2425.0,4.2511046]
[1726359172095,0.0396696,2425.1,2425.0,4.24877482]
[1726359172330,0.0396696,2425.1,2425.0,3.29896]
[1726359172795,0.0396696,2425.1,2425.0,3.31924356]
[1726359174162,0.0396696,2425.1,2425.0,0.02028356]
[1726359176538,0.0396696,2425.1,2425.0,0.79151714]
[1726359179412,0.0396696,2425.1,2425.0,0.91359892]
[1726359181845,0.0396696,2425.1,2425.0,4.21255892]
[1726359182440,0.0396696,2425.1,2425.0,4.29502547]
[1726359183953,0.0396696,2425.1,2425.0,4.21255892]
[1726359184162,0.0396696,2425.1,2425.0,7.51151892]
[1726359184455,0.0396696,2425.1,2425.0,9.78251892]
[1726359186547,0.0396696,2425.1,2425.0,7.51151892]
[1726359190347,0.0396696,2425.1,2425.0,4.21255892]
[1726359190652,2.5208696,2425.1,2425.0,0.14236534]
[1726359191461,2.5208696,2425.1,2425.0,3.44132534]
[1726359200569,0.0396696,2425.1,2425.0,3.44132534]
[1726359208704,2.3669696,2425.1,2425.0,0.14236534]
[1726359213417,2.3669696,2425.1,2425.0,1.09271341]
[1726359214302,2.3669696,2425.1,2425.0,2.51918996]
[1726359214906,2.3669696,2425.1,2425.0,2.5198742]
[1726359219692,2.3669696,2425.1,2425.0,0.14236534]
[1726359220010,2.3669696,2425.1,2425.0,2.52014159]
[1726359221737,0.0396696,2425.1,2425.0,2.52014159]
[1726359222401,0.0396696,2425.1,2425.0,3.38477815]
[1726359222733,0.0396696,2425.1,2425.0,4.82457744]
[1726359223235,0.0396696,2425.1,2425.0,8.12353744]
[1726359223529,0.0396696,2425.1,2425.0,7.25890088]
[1726359224705,0.0396696,2425.1,2425.0,7.24103206]
[1726359229543,0.0396696,2425.1,2425.0,7.24113903]
[1726359232245,0.0396696,2425.1,2425.0,13.74613559]
[1726359232541,0.0396696,2425.1,2425.0,16.62914329]
[1726359233999,0.0396696,2425.1,2425.0,13.44326191]
[1726359234334,0.0396696,2425.1,2425.0,16.62844508]
[1726359235434,0.0396696,2425.1,2425.0,16.62839665]
[1726359236640,0.0396696,2425.1,2425.0,14.26886369]
[1726359237236,0.0396696,2425.1,2425.0,12.97082545]
[1726359238733,0.0396696,2425.1,2425.0,12.409111]
[1726359238941,0.0396696,2425.1,2425.0,12.97083532]
[1726359241446,0.0396696,2425.1,2425.0,12.97084346]
[1726359241740,0.0396696,2425.1,2425.0,12.409111]
[1726359242642,0.0396696,2425.1,2425.0,10.067711]
[1726359243344,0.0396696,2425.1,2425.0,8.18008463]
[1726359248362,0.0396696,2425.1,2425.0,11.40104191]
[1726359249062,0.0396696,2425.1,2425.0,10.53723169]
[1726359249362,2.4824696,2425.1,2425.0,5.7984724]
[1726359251464,0.0396696,2425.1,2425.0,5.7984724]
[1726359251937,0.0396696,2425.1,2425.0,3.52378569]
[1726359253062,0.0396696,2425.1,2425.0,6.82274569]
[1726359253467,0.0396696,2425.1,2425.0,9.17893837]
[1726359254189,0.0396696,2425.1,2425.0,9.09647802]
[1726359254327,0.0396696,2425.1,2425.0,10.5425994]
[1726359254532,0.0396696,2425.1,2425.0,7.2436394]
[1726359254768,0.0396696,2425.1,2425.0,6.66091155]
[1726359256467,0.0396696,2425.1,2425.0,10.04233316]
[1726359256648,0.0396696,2425.1,2425.0,9.17893963]
[1726359256850,0.0396696,2425.1,2425.0,9.17860732]
[1726359257256,2.10881941,2425.4,2425.1,3.29874]
[1726359257596,2.10881941,2425.4,2425.2,5.79427393]
[1726359257743,2.10881941,2425.4,2425.2,3.43841356]
[1726359262353,2.10881941,2425.4,2425.3,3.29856]
[1726359262763,2.10881941,2425.4,2425.3,3.31874154]
[1726359266387,4.24833341,2425.6,2425.3,4.26094919]
[1726359266587,4.24833341,2425.6,2425.3,3.31874154]
[1726359269493,4.24833341,2425.6,2425.4,0.11956856]
[1726359269943,4.24833341,2425.6,2425.5,0.02011354]
[1726359284606,4.24833341,2425.6,2425.5,0.13965199]
[1726359292523,2.48,2425.6,2425.5,0.13965199]
[1726359302832,1.76833341,2425.7,2425.5,0.13965199]
[1726359306544,2.2882,2425.6,2425.5,0.13965199]
[1726359311207,3.58948107,2425.6,2425.5,0.13965199]
[1726359315276,1.30128107,2425.6,2425.5,0.13965199]
[1726359321403,4.82739565,2425.6,2425.5,0.13965199]
[1726359321745,8.55930601,2425.6,2425.5,0.13965199]
[1726359327649,5.26115601,2425.6,2425.5,0.13965199]
[1726359331536,11.85745601,2425.6,2425.5,0.13965199]
[1726359331863,19.02194549,2425.6,2425.5,0.13965199]
[1726359332151,19.02194549,2425.6,2424.6,10.59706809]
[1726359332152,2.4014,2425.1,2424.7,1.38950837]
[1726359332304,2.4014,2425.1,2424.6,17.19590809]
[1726359332305,1.76833341,2424.9,2424.6,17.19590809]
[1726359332506,1.76833341,2424.9,2424.8,0.10380748]
[1726359332706,1.76833341,2424.9,2424.7,0.10377347]
[1726359332935,1.76833341,2424.9,2424.8,0.10380748]
[1726359333348,1.76833341,2424.9,2424.6,5.682]
[1726359333547,1.76833341,2424.9,2424.8,0.10380748]
[1726359333757,1.76833341,2424.9,2424.7,0.10377347]
[1726359333950,1.76833341,2424.9,2424.8,0.10380748]
[1726359334616,1.76833341,2424.9,2424.6,5.682]
[1726359334817,1.76833341,2424.9,2424.7,0.10377347]
[1726359335716,1.76833341,2424.9,2424.8,0.02035158]
[1726359336056,1.76833341,2424.9,2424.7,0.10377347]
[1726359336224,1.76833341,2424.9,2424.8,0.02035158]
[1726359336432,1.76833341,2424.9,2424.7,0.10377347]
[1726359336749,1.76833341,2424.9,2424.8,0.02035158]
[1726359337160,1.76833341,2424.9,2424.7,0.10377347]
[1726359337360,1.76833341,2424.9,2424.8,0.12441434]
[1726359344030,2.4014,2425.1,2424.8,0.12441434]
[1726359344031,4.16973341,2425.1,2424.8,0.12441434]
[1726359354656,1.76833341,2424.9,2424.8,0.12441434]
[1726359354951,4.14233341,2424.9,2424.8,0.12441434]
[1726359363749,7.44143341,2424.9,2424.8,0.12441434]
[1726359375199,8.74165555,2424.9,2424.8,0.12441434]
[1726359377302,5.44255555,2424.9,2424.8,0.12441434]
[1726359377608,3.06855555,2425.1,2424.8,2.59301434]
[1726359377762,8.76104837,2425.4,2425.0,2.4686]
[1726359377763,5.06680341,2425.4,2425.0,2.4686]
[1726359377958,1.30022214,2425.6,2425.0,5.76755]
[1726359378163,1.76833341,2425.5,2425.2,2.4686]
[1726359378394,1.76833341,2425.3,2425.2,2.4686]
[1726359381097,1.76833341,2425.3,2425.1,0.11990369]
[1726359404141,5.06691341,2425.3,2425.1,0.11990369]
[1726359407233,1.76833341,2425.3,2425.1,0.11990369]
[1726359410447,1.76833341,2425.3,2425.1,2.54900369]
[1726359416036,1.76833341,2425.4,2425.1,2.54900369]
[1726359422334,1.76833341,2425.4,2425.2,0.92863503]
[1726359422646,1.76833341,2425.4,2425.2,0.1153464]
[1726359429349,2.81538109,2425.4,2425.2,0.1153464]
[1726359430375,1.76833341,2425.4,2425.2,0.1153464]
[1726359430860,1.29844381,2425.5,2425.2,0.1153464]
[1726359431062,1.76833341,2425.4,2425.2,0.1153464]
[1726359440670,3.06677722,2425.6,2425.3,0.9273208]
[1726359440850,3.06677722,2425.6,2425.2,6.7125764]
[1726359441047,1.76833341,2425.6,2425.4,0.11528256]
[1726359442182,1.76833341,2425.6,2425.4,3.41368256]
[1726359444945,1.76833341,2425.6,2425.4,0.11528256]
[1726359448785,4.09953341,2425.6,2425.4,0.11528256]
[1726359450853,4.56177944,2425.6,2425.4,0.11528256]
[1726359454285,7.85992944,2425.6,2425.4,0.11528256]
[1726359455692,3.29828,2425.5,2425.4,0.11528256]
[1726359482746,5.86022325,2425.6,2425.4,0.11528256]
[1726359483651,9.15841325,2425.6,2425.4,0.11528256]
[1726359485354,0.75380381,2425.5,2425.4,0.11528256]
[1726359488334,9.15841325,2425.6,2425.4,0.11528256]
[1726359495458,1.29844381,2425.5,2425.4,0.11528256]
[1726359500554,4.59672381,2425.5,2425.4,0.11528256]
[1726359501067,1.29844381,2425.5,2425.4,0.11528256]
[1726359507277,4.59672381,2425.5,2425.4,0.11528256]
[1726359511416,1.29844381,2425.5,2425.4,2.59668256]
[1726359511608,7.97508247,2425.8,2425.4,5.17557262]
[1726359511609,1.29844381,2425.7,2425.4,5.17557262]
[1726359511775,1.29844381,2425.7,2425.4,2.85635082]
[1726359511962,1.76833341,2425.7,2425.5,2.69110183]
[1726359512161,1.76833341,2425.7,2425.5,0.37208189]
[1726359512362,1.76833341,2425.7,2425.6,0.11506214]
[1726359543538,5.06634341,2425.7,2425.6,0.11506214]
[1726359543756,10.00628485,2425.7,2425.6,0.11506214]
[1726359545448,8.70784104,2425.7,2425.6,0.11506214]
[1726359545758,10.00628485,2425.7,2425.6,0.11506214]
[1726359564191,4.21037485,2425.7,2425.6,0.11506214]
[1726359565097,3.06677722,2425.7,2425.6,0.11506214]
[1726359565504,1.76833341,2425.7,2425.6,0.11506214]
[1726359566601,3.06677722,2425.7,2425.6,0.11506214]
[1726359573211,6.36478722,2425.7,2425.6,0.11506214]
[1726359582526,1.29844381,2425.7,2425.6,0.11506214]
[1726359582729,1.76833341,2425.7,2425.6,0.11506214]
[1726359588575,4.63600341,2425.8,2425.6,0.11506214]
[1726359588877,1.76833341,2425.7,2425.6,0.11506214]
[1726359590777,1.33811341,2425.8,2425.6,0.11506214]
[1726359591133,3.10644682,2425.8,2425.6,0.11506214]
[1726359592066,3.10644682,2425.8,2425.6,2.47316214]
[1726359598590,3.10644682,2425.8,2425.6,0.11506214]
[1726359601511,4.03248658,2425.8,2425.6,0.11506214]
[1726359601703,3.55124381,2425.7,2425.6,0.11506214]
[1726359601915,2.2528,2425.7,2425.6,0.11506214]
[1726359602216,3.98642953,2425.7,2425.6,0.11506214]
[1726359602773,4.02113341,2425.7,2425.6,0.11506214]
[1726359603021,6.21046279,2425.7,2425.6,0.11506214]
[1726359603220,6.64356229,2425.7,2425.6,0.11506214]
[1726359606129,4.90993276,2425.7,2425.6,0.11506214]
[1726359607117,6.64356229,2425.7,2425.6,0.11506214]
[1726359608010,4.90993276,2425.7,2425.6,0.11506214]
[1726359608234,6.21036825,2425.7,2425.6,0.11506214]
[1726359608396,6.21036546,2425.7,2425.6,0.11506214]
[1726359608802,6.21035736,2425.7,2425.6,0.11506214]
[1726359609043,6.21036042,2425.7,2425.6,0.11506214]
[1726359609236,6.21033674,2425.7,2425.6,0.11506214]
[1726359609399,6.64356229,2425.7,2425.6,0.11506214]
[1726359610397,6.21034397,2425.7,2425.6,0.11506214]
[1726359610595,4.90993276,2425.7,2425.6,0.11506214]
[1726359611244,4.02113341,2425.7,2425.6,0.11506214]
[1726359613129,1.76833341,2425.7,2425.6,0.11506214]
[1726359613841,1.76833341,2425.7,2425.6,2.47276214]
[1726359616218,1.76833341,2425.7,2425.6,0.11506214]
[1726359631977,1.76833341,2425.7,2425.6,0.02007955]
[1726359632185,1.76833341,2425.7,2425.6,0.14480849]
[1726359632506,1.76833341,2425.7,2425.6,0.02007955]
[1726359632769,1.76833341,2425.7,2425.6,0.16488804]
[1726359632979,1.76833341,2425.7,2425.4,2.2716]
[1726359635779,1.76833341,2425.7,2425.5,0.02011354]
[1726359644280,1.76833341,2425.7,2425.6,0.14477369]
[1726359644484,1.76833341,2425.7,2425.6,0.16485324]
[1726359663902,1.76833341,2425.7,2425.6,2.49225324]
[1726359664085,0.0396696,2425.8,2425.6,5.40183627]
[1726359664234,1.80800301,2425.8,2425.6,3.07131956]
[1726359664433,1.80800301,2425.8,2425.6,2.49225324]
[1726359665262,1.80800301,2425.8,2425.6,0.16485324]
[1726359680652,1.80800301,2425.8,2425.7,2.3328]
[1726359681134,1.80800301,2425.8,2425.7,2.49767644]
[1726359682091,0.0396696,2425.8,2425.7,2.49767644]
[1726359682434,1.80800301,2425.8,2425.7,0.16487644]
[1726359699476,0.0396696,2425.8,2425.7,5.94178644]
[1726359699773,0.0396696,2425.8,2425.7,2.64377644]
[1726359711341,1.80800301,2425.8,2425.7,2.64377644]
[1726359712764,1.80800301,2425.8,2425.7,0.16487644]
[1726359718161,1.80800301,2425.8,2425.7,2.59707644]
[1726359718491,0.0396696,2425.8,2425.7,15.34669563]
[1726359719980,0.0396696,2425.8,2425.7,15.34390433]
[1726359720422,0.0396696,2425.8,2425.7,18.89390433]
[1726359722819,0.0396696,2425.8,2425.7,17.03405552]
[1726359723516,0.0396696,2425.8,2425.7,17.03259235]
[1726359723885,0.0396696,2425.8,2425.7,15.73589021]
[1726359724495,0.0396696,2425.8,2425.7,16.59800458]
[1726359725587,0.0396696,2425.8,2425.7,15.73589021]
[1726359725788,0.0396696,2425.8,2425.7,16.59798793]
[1726359726020,1.80800301,2426.5,2426.1,3.29742]
[1726359726189,1.80800301,2426.5,2426.1,5.72962]
[1726359726517,1.80800301,2426.5,2426.2,0.16385605]
[1726359733528,2.4332,2426.4,2426.2,0.16385605]
[1726359733728,2.2832,2426.4,2426.2,0.16385605]
[1726359736937,4.05153341,2426.4,2426.2,0.16385605]
[1726359753279,7.34867341,2426.4,2426.2,0.16385605]
[1726359753448,8.21714451,2426.4,2426.2,0.16385605]
[1726359754279,3.2972,2426.3,2426.2,0.16385605]
[1726359754453,9.0061,2426.3,2426.2,0.16385605]
[1726359754959,10.30267796,2426.3,2426.2,0.16385605]
[1726359755175,12.42725779,2426.3,2426.2,0.16385605]
[1726359755340,12.8561293,2426.3,2426.2,0.16385605]
[1726359756169,12.42443652,2426.3,2426.2,0.16385605]
[1726359756377,16.99082826,2426.3,2426.2,0.16385605]
[1726359756577,16.99082826,2426.3,2425.6,7.35]
[1726359756578,3.29782,2425.9,2425.6,7.35]
[1726359756749,1.76833341,2425.7,2425.3,5.63767]
[1726359760083,1.76833341,2425.7,2425.3,3.29847]
[1726359760377,1.76833341,2425.7,2425.4,0.02014754]
[1726359764393,1.76833341,2425.7,2425.5,0.08571239]
[1726359764690,1.76833341,2425.7,2425.5,0.10582593]
[1726359772102,7.46485341,2426.0,2425.5,2.44502593]
[1726359773225,8.2678691,2426.0,2425.5,2.44502593]
[1726359776013,8.2678691,2426.0,2425.5,2.44033535]
[1726359783438,4.10063569,2426.0,2425.6,2.3654]
[1726359783642,4.10063569,2426.0,2425.7,0.10110136]
[1726359784425,7.45652341,2426.1,2425.7,0.10110136]